fUST/lending_fUST_20250921
["ID","MTS","AMOUNT","RATE_DAILY","PERIOD"]
[386627883,1758442652576,-480.0,0.00019388,2]
[386627884,1758442652929,-5.45705031,0.00019388,2]
[386627885,1758442652969,-391.49300666,0.00019388,2]
[386627886,1758442691981,-300.0,0.00019326,2]
[386627887,1758442692017,-480.0,0.00019327,2]
[386627888,1758442692054,-546.39,0.00019327,2]
[386627889,1758442692090,-480.0,0.00019327,2]
[386627890,1758442692126,-480.0,0.00019327,2]
[386627891,1758442692162,-480.0,0.00019327,2]
[386627892,1758442692197,-497.12467005,0.00019327,2]
[386627893,1758442692231,-483.09560513,0.00019327,2]
[386627894,1758442692267,-480.0,0.00019327,2]
[386627895,1758442692303,-487.28876053,0.00019327,2]
[386627896,1758442692340,-92.21192858,0.00019329,2]
[386627897,1758442692863,-387.78807142,0.00019329,2]
[386627898,1758442692872,-20.22027518,0.00019329,2]
[386627899,1758442712018,-480.0,0.00019327,2]
[386627900,1758442712055,-480.0,0.00019327,2]
[386627901,1758442712092,-480.0,0.00019327,2]
[386627902,1758442712127,-480.0,0.00019328,2]
[386627903,1758442712163,-460.69167041,0.00019329,2]
[386627904,1758442712198,-480.0,0.00019329,2]
[386627905,1758442712234,-480.0,0.00019378,2]
[386627906,1758442712270,-480.0,0.00019378,2]
[386627907,1758442712305,-480.0,0.00019378,2]
[386627908,1758442712341,-422.43882842,0.00019379,2]
[386627909,1758442712578,-553.74900234,0.00019379,2]
[386627910,1758442712619,-2207.72099766,0.00019379,2]
[386627911,1758442712655,-480.0,0.0001938,2]
[386627912,1758442712692,-480.0,0.0001938,2]
[386627913,1758442712727,-480.0,0.0001938,2]
[386627914,1758442712764,-480.0,0.0001938,2]
[386627915,1758442712800,-83.04994303,0.00019388,2]
[386627916,1758442712835,-480.0,0.00019388,2]
[386627917,1758442712870,-138.46811862,0.00019388,2]
[386627918,1758442712930,-341.53188138,0.00019388,2]
[386627919,1758442712964,-480.0,0.00019388,2]
[386627920,1758442713000,-480.0,0.00019388,2]
[386627921,1758442713149,-480.0,0.00019388,2]
[386627922,1758442713186,-483.22,0.00019388,2]
[386627923,1758442713222,-480.0,0.00019388,2]
[386627924,1758442713259,-480.0,0.00019388,2]
[386627925,1758442713296,-480.0,0.00019388,2]
[386627926,1758442713333,-480.0,0.00019388,2]
[386627927,1758442713368,-480.0,0.00019388,2]
[386627928,1758442713405,-180.5830532,0.00019388,2]
[386627929,1758442713838,-164.16882818,0.00019388,2]
[386627930,1758442713859,-145.17130266,0.00019388,2]
[386627931,1758442713869,-344.75188138,0.00019388,2]
[386627932,1758442721930,-10000.01,0.00019325,2]
[386627933,1758442722104,-2230.2171558,0.00019325,2]
[386627934,1758442722134,-5539.5756884,0.00019325,2]
[386627935,1758442722278,-1758.9450888,0.00018384,2]
[386627936,1758442722308,-6482.1198224,0.00018384,2]
[386627937,1758442722410,-480.0,0.00019327,2]
[386627938,1758442722445,-480.0,0.00019327,2]
[386627939,1758442722481,-375.28542327,0.00019328,2]
[386627940,1758442722517,-480.0,0.00019329,2]
[386627941,1758442722554,-480.0,0.0001938,2]
[386627942,1758442722589,-480.0,0.00019382,2]
[386627943,1758442722625,-288.38148228,0.00019387,2]
[386627944,1758442722660,-194.88355597,0.00019387,2]
[386627945,1758442722697,-190.10619223,0.00019387,2]
[386627946,1758442722731,-135.24811862,0.00019388,2]
[386627947,1758442722766,-480.0,0.00019388,2]
[386627948,1758442722801,-480.0,0.00019388,2]
[386627949,1758442722837,-432.20045526,0.00019388,2]
[386627950,1758442723102,-47.79954474,0.00019388,2]
[386627951,1758442731950,-480.0,0.00019327,2]
[386627952,1758442731988,-480.0,0.00019327,2]
[386627953,1758442732020,-480.0,0.00019329,2]
[386627954,1758442732056,-482.85,0.00019382,2]
[386627955,1758442732091,-251.50141877,0.00019388,2]
[386627956,1758442732125,-480.0,0.00019388,2]
[386627957,1758442732160,-489.03,0.00019388,2]
[386627958,1758442732194,-480.0,0.00019388,2]
[386627959,1758442732227,-480.0,0.00019388,2]
[386627960,1758442732261,-483.23268833,0.00019388,2]
[386627961,1758442732294,-343.14681571,0.00019388,2]
[386627962,1758442732410,-140.48815438,0.00019388,2]
[386627963,1758442732448,-480.0,0.00019388,2]
[386627964,1758442732484,-480.0,0.00019388,2]
[386627965,1758442732519,-480.0,0.00019388,2]
[386627966,1758442732781,-140.48815438,0.00019389,2]
[386627967,1758442732802,-6839.03369124,0.00019389,2]
[386627968,1758442732827,-5089.93469017,0.00019389,2]
[386627969,1758442732836,-571.89,0.00019395,2]
[386627970,1758442732846,-166.0,0.00019396,2]
[386627971,1758442732856,-166.0,0.00019396,2]
[386627972,1758442732866,-480.0,0.00019399,2]
[386627973,1758442732875,-480.0,0.00019399,2]
[386627974,1758442732884,-3046.18530983,0.000194,2]
[386627975,1758442787163,-485.51758977,0.00019327,2]
[386627976,1758442787198,-480.0,0.00019327,2]
[386627977,1758442787232,-480.0,0.00019327,2]
[386627978,1758442787265,-494.19026466,0.00019327,2]
[386627979,1758442787299,-480.0,0.00019327,2]
[386627980,1758442787334,-480.0,0.00019328,2]
[386627981,1758442787370,-553.18,0.00019328,2]
[386627982,1758442787404,-480.0,0.00019328,2]
[386627983,1758442787439,-480.0,0.00019329,2]
[386627984,1758442787475,-480.0,0.00019329,2]
[386627985,1758442787682,-214.23429114,0.00019329,2]
[386627986,1758442797006,-265.76570886,0.00019329,2]
[386627987,1758442797042,-490.35853666,0.00019329,2]
[386627988,1758442797077,-480.0,0.00019329,2]
[386627989,1758442797110,-342.35565529,0.00019329,2]
[386627990,1758442797145,-480.0,0.00019378,2]
[386627991,1758442797182,-480.0,0.00019378,2]
[386627992,1758442797217,-480.0,0.00019378,2]
[386627993,1758442797251,-493.49105663,0.00019378,2]
[386627994,1758442797285,-160.0,0.00019378,2]
[386627995,1758442797320,-481.70893964,0.00019378,2]
[386627996,1758442797354,-191.09,0.00019378,2]
[386627997,1758442797389,-488.12319935,0.00019378,2]
[386627998,1758442797659,-334.22380714,0.00019378,2]
[386627999,1758442817265,-480.0,0.00019327,2]
[386628000,1758442817302,-480.0,0.00019327,2]
[386628001,1758442817341,-480.0,0.00019327,2]
[386628002,1758442817378,-480.0,0.00019329,2]
[386628003,1758442817416,-480.0,0.00019329,2]
[386628004,1758442817455,-300.0,0.00019377,2]
[386628005,1758442817492,-145.77619286,0.00019378,2]
[386628006,1758442817529,-482.97608941,0.00019378,2]
[386628007,1758442817566,-480.0,0.00019378,2]
[386628008,1758442817602,-480.0,0.00019378,2]
[386628009,1758442817638,-482.28024619,0.00019378,2]
[386628010,1758442817675,-190.13203528,0.00019378,2]
[386628011,1758442817978,-77.68087252,0.00019378,2]
[386628012,1758442847369,-480.0,0.00019327,2]
[386628013,1758442847406,-480.0,0.00019327,2]
[386628014,1758442847442,-484.22217264,0.00019327,2]
[386628015,1758442847481,-480.0,0.00019327,2]
[386628016,1758442847519,-480.0,0.00019327,2]
[386628017,1758442847558,-480.0,0.00019327,2]
[386628018,1758442847594,-480.0,0.00019327,2]
[386628019,1758442847630,-480.0,0.00019328,2]
[386628020,1758442847769,-480.0,0.00019329,2]
[386628021,1758442847993,-1351.56565472,0.00019372,2]
[386628022,1758442848023,-10000.01,0.00019372,2]
[386628023,1758442848042,-10000.01,0.00019372,2]
[386628024,1758442848067,-10000.01,0.00019372,2]
[386628025,1758442857224,-480.0,0.00019327,2]
[386628026,1758442857260,-480.0,0.00019329,2]
[386628027,1758442857299,-1962.68555592,0.00019372,2]
[386628028,1758442857368,-4154.63888816,0.00019372,2]
[386628029,1758442869736,801.49423609,0.0002918,120]
[386628030,1758442877225,-480.0,0.00019327,2]
[386628031,1758442877261,-541.03768656,0.00019327,2]
[386628032,1758442877297,-480.0,0.00019327,2]
[386628033,1758442877333,-480.0,0.00019327,2]
[386628034,1758442877368,-300.0,0.00019377,2]
[386628035,1758442877402,-480.723002,0.00019378,2]
[386628036,1758442877436,-481.35691474,0.00019378,2]
[386628037,1758442877471,-480.0,0.00019378,2]
[386628038,1758442877505,-480.0,0.00019378,2]
[386628039,1758442877540,-266.74959258,0.00019378,2]
[386628040,1758442877575,-483.14447028,0.00019378,2]
[386628041,1758442877818,-93.98666768,0.00019378,2]
[386628042,1758442932458,-300.0,0.00019326,2]
[386628043,1758442932496,-480.0,0.00019327,2]
[386628044,1758442932534,-692.66,0.00019327,2]
[386628045,1758442932569,-319.37656569,0.00019327,2]
[386628046,1758442932605,-480.0,0.00019327,2]
[386628047,1758442932640,-480.0,0.00019327,2]
[386628048,1758442932676,-480.0,0.00019327,2]
[386628049,1758442932711,-480.0,0.00019327,2]
[386628050,1758442932746,-480.0,0.00019327,2]
[386628051,1758442932782,-480.0,0.00019327,2]
[386628052,1758442932818,-125.80686862,0.00019328,2]
[386628053,1758442933064,-404.32313138,0.00019328,2]
[386628054,1758442972582,-201.472412,0.00018382,2]
[386628055,1758442972620,-1420.14,0.00019327,2]
[386628056,1758442972658,-515.52,0.00019327,2]
[386628057,1758442972694,-300.26008268,0.00019327,2]
[386628058,1758442972729,-482.2580015,0.00019327,2]
[386628059,1758442972764,-565.68,0.00019327,2]
[386628060,1758442972798,-453.31,0.00019327,2]
[386628061,1758442972833,-506.61020427,0.00019327,2]
[386628062,1758442972868,-480.0,0.00019329,2]
[386628063,1758442973107,-149.5085991,0.00019329,2]
[386628064,1758443158358,148986.3061,0.0002918,60]
[386628065,1758443159205,74493.15305,0.0002918,60]
[386628066,1758443160174,55869.86478,0.0002918,60]
[386628067,1758443161673,55869.86478,0.0002918,60]
[386628068,1758443162623,37246.57652,0.0002918,60]
[386628069,1758443197933,-169.35839487,0.00019288,2]
[386628070,1758443197961,-300.0,0.00019326,2]
[386628071,1758443197990,-300.0,0.00019326,2]
[386628072,1758443198020,-300.0,0.00019326,2]
[386628073,1758443198050,-1200.0,0.00019326,2]
[386628074,1758443198080,-300.0,0.00019326,2]
[386628075,1758443198108,-500.0,0.00019326,2]
[386628076,1758443198139,-500.0,0.00019326,2]
[386628077,1758443198170,-500.0,0.00019326,2]
[386628078,1758443198199,-500.0,0.00019326,2]
[386628079,1758443198230,-361.29321026,0.00019326,2]
[386628080,1758443198382,-138.70678974,0.00019326,2]
[386628081,1758443198557,-500.0,0.00019326,2]
[386628082,1758443198592,-500.0,0.00019326,2]
[386628083,1758443198623,-500.0,0.00019326,2]
[386628084,1758443198655,-500.0,0.00019326,2]
[386628085,1758443198687,-500.0,0.00019326,2]
[386628086,1758443198717,-500.0,0.00019326,2]
[386628087,1758443198748,-500.0,0.00019326,2]
[386628088,1758443198778,-500.0,0.00019326,2]
[386628089,1758443198812,-500.0,0.00019326,2]
[386628090,1758443198845,-222.59642052,0.00019326,2]
[386628091,1758443199107,-277.40357948,0.00019326,2]
[386628092,1758443199118,-138.70678974,0.00019326,2]
[386628093,1758443207818,-361.29321026,0.00019326,2]
[386628094,1758443207853,-500.0,0.00019326,2]
[386628095,1758443207884,-500.0,0.00019326,2]
[386628096,1758443207915,-500.0,0.00019326,2]
[386628097,1758443207948,-500.0,0.00019326,2]
[386628098,1758443207979,-500.0,0.00019326,2]
[386628099,1758443208008,-500.0,0.00019326,2]
[386628100,1758443208042,-500.0,0.00019326,2]
[386628101,1758443208073,-500.0,0.00019326,2]
[386628102,1758443208103,-500.0,0.00019326,2]
[386628103,1758443208232,-450.52786731,0.00019326,2]
[386628104,1758443208267,-395.9835066,0.00019326,2]
[386628105,1758443208299,-242.762769,0.00019326,2]
[386628106,1758443208330,-500.0,0.00019326,2]
[386628107,1758443208362,-500.0,0.00019326,2]
[386628108,1758443208396,-500.0,0.00019326,2]
[386628109,1758443208427,-500.0,0.00019326,2]
[386628110,1758443208458,-500.0,0.00019326,2]
[386628111,1758443208493,-500.0,0.00019326,2]
[386628112,1758443208525,-500.0,0.00019326,2]
[386628113,1758443208557,-321.46171418,0.00019326,2]
[386628114,1758443208949,-178.53828582,0.00019326,2]
[386628115,1758443208959,-321.46171418,0.00019326,2]
[386628116,1758443212390,-178.53828582,0.00019326,2]
[386628117,1758443212418,-500.0,0.00019326,2]
[386628118,1758443212448,-500.0,0.00019326,2]
[386628119,1758443212481,-500.0,0.00019326,2]
[386628120,1758443212509,-500.0,0.00019326,2]
[386628121,1758443212541,-500.0,0.00019326,2]
[386628122,1758443212574,-500.0,0.00019326,2]
[386628123,1758443212603,-500.0,0.00019326,2]
[386628124,1758443212636,-500.0,0.00019326,2]
[386628125,1758443212667,-500.0,0.00019326,2]
[386628126,1758443212699,-142.93342836,0.00019326,2]
[386628127,1758443212854,-357.06657164,0.00019326,2]
[386628131,1758443316151,-438.18508772,0.00018327,2]
[386628132,1758443319203,-207.9543967,0.00018327,2]
[386628133,1758443321215,-107.50392858,0.00018327,2]
[386628134,1758443368313,-10000.01,0.00019291,2]
[386628135,1758443425953,-258.77333068,0.00018316,2]
[386628136,1758443428446,-160.17430248,0.00018316,2]
[386628137,1758443430888,-83.42675844,0.00018316,2]
[386628163,1758443431935,-170.83286777,0.00019227,2]
[386628165,1758443431945,-300.0,0.0001929,2]
[386628167,1758443431955,-5647.1726093,0.00019291,2]
[386628169,1758443431966,-5607.3818378,0.00019291,2]
[386628171,1758443431978,-1159.72711655,0.00019291,2]
[386628173,1758443437094,1452.87048,0.0002918,60]
[386628206,1758443437827,-200.0,0.00019214,2]
[386628207,1758443437837,-500.0,0.0001929,2]
[386628210,1758443437847,-500.0,0.0001929,2]
[386628212,1758443437856,-500.0,0.0001929,2]
[386628213,1758443437865,-500.0,0.0001929,2]
[386628214,1758443437875,-383.39198526,0.0001929,2]
[386628215,1758443437884,-500.0,0.0001929,2]
[386628216,1758443437893,-500.0,0.0001929,2]
[386628217,1758443437902,-500.0,0.0001929,2]
[386628218,1758443437911,-500.0,0.0001929,2]
[386628219,1758443437921,-500.0,0.0001929,2]
[386628220,1758443437931,-500.0,0.0001929,2]
[386628221,1758443437940,-500.0,0.0001929,2]
[386628222,1758443437949,-500.0,0.0001929,2]
[386628223,1758443437958,-500.0,0.0001929,2]
[386628224,1758443437967,-500.0,0.0001929,2]
[386628225,1758443437976,-500.0,0.0001929,2]
[386628226,1758443437986,-500.0,0.0001929,2]
[386628227,1758443437995,-378.42132868,0.0001929,2]
[386628228,1758443438004,-500.0,0.0001929,2]
[386628229,1758443438013,-609.3207619,0.0001929,2]
[386628230,1758443438023,-500.0,0.0001929,2]
[386628231,1758443438035,-500.0,0.0001929,2]
[386628232,1758443438045,-500.0,0.0001929,2]
[386628233,1758443438054,-500.0,0.0001929,2]
[386628234,1758443438064,-500.0,0.0001929,2]
[386628235,1758443438075,-500.0,0.0001929,2]
[386628236,1758443438084,-500.0,0.0001929,2]
[386628237,1758443438095,-500.0,0.0001929,2]
[386628238,1758443438104,-500.0,0.0001929,2]
[386628239,1758443438113,-500.0,0.0001929,2]
[386628240,1758443438122,-500.0,0.0001929,2]
[386628241,1758443438131,-500.0,0.0001929,2]
[386628242,1758443438140,-500.0,0.0001929,2]
[386628243,1758443438149,-500.0,0.0001929,2]
[386628244,1758443438158,-500.0,0.0001929,2]
[386628245,1758443438167,-500.0,0.0001929,2]
[386628246,1758443438175,-500.0,0.0001929,2]
[386628247,1758443438185,-639.59835066,0.0001929,2]
[386628248,1758443438194,-500.0,0.0001929,2]
[386628249,1758443438205,-500.0,0.0001929,2]
[386628250,1758443438214,-500.0,0.0001929,2]
[386628251,1758443438224,-500.0,0.0001929,2]
[386628252,1758443438233,-500.0,0.0001929,2]
[386628253,1758443438242,-500.0,0.0001929,2]
[386628254,1758443438251,-500.0,0.0001929,2]
[386628255,1758443438261,-500.0,0.0001929,2]
[386628256,1758443438270,-500.0,0.0001929,2]
[386628257,1758443438279,-500.0,0.0001929,2]
[386628258,1758443438288,-500.0,0.0001929,2]
[386628259,1758443438297,-500.0,0.0001929,2]
[386628260,1758443438306,-500.0,0.0001929,2]
[386628261,1758443438316,-500.0,0.0001929,2]
[386628262,1758443438325,-500.0,0.0001929,2]
[386628263,1758443438336,-500.0,0.0001929,2]
[386628264,1758443438345,-500.0,0.0001929,2]
[386628265,1758443438354,-500.0,0.0001929,2]
[386628266,1758443438364,-500.0,0.0001929,2]
[386628267,1758443438373,-500.0,0.0001929,2]
[386628268,1758443438383,-500.0,0.0001929,2]
[386628269,1758443438392,-2721.98748725,0.00019291,2]
[386628270,1758443438401,-417.15472785,0.00019291,2]
[386628271,1758443438410,-500.0,0.000193,2]
[386628272,1758443438419,-170.83286776,0.00019314,2]
[386628273,1758443438429,-500.0,0.00019325,2]
[386628274,1758443438438,-9337.78969869,0.00019325,2]
[386628275,1758443438452,-7330.17714334,0.00019325,2]
[386628276,1758443438468,-2668.27079199,0.00019325,2]
[386628311,1758443440014,-1585.49455837,0.00019325,2]
[386628656,1758443445989,-2317.14093563,0.00019325,2]
[386628658,1758443445998,-490.72630955,0.00019325,2]
[386628660,1758443446007,-480.0,0.00019325,2]
[386628662,1758443446017,-485.80264955,0.00019325,2]
[386628664,1758443446027,-85.22460198,0.00019325,2]
[386629451,1758443526872,161.0,8e-07,2]
[386629453,1758443705418,1000.0,0.00017,2]
[386629454,1758443705635,1000.0,0.00017,2]
[386629455,1758443705910,1000.0,0.00017,2]
[386629456,1758443706095,1000.0,0.00017,2]
[386629457,1758443706309,1000.0,0.00017,2]
[386629458,1758443706509,1000.0,0.00017,2]
[386629459,1758443706772,1000.0,0.00017,2]
[386629460,1758443706987,1000.0,0.00017,2]
[386629461,1758443707181,1000.0,0.00017,2]
[386629462,1758443707477,839.01,0.00017,2]
[386629463,1758443707498,160.99,0.00017,2]
[386629464,1758443784237,-417.15472785,0.00019266,2]
[386629465,1758443798170,194.7377939,0.00019275,2]
[386629466,1758443799056,500.0,0.00019275,2]
[386629467,1758443799084,500.0,0.00019275,2]
[386629468,1758443799116,347.77650586,0.00019275,2]
[386629469,1758443799145,460.93207619,0.00019275,2]
[386629470,1758443799175,291.21052422,0.00019275,2]
[386629471,1758443799214,194.01816934,0.00019275,2]
[386629472,1758443799250,500.0,0.00019275,2]
[386629473,1758443799286,500.0,0.00019275,2]
[386629474,1758443799419,500.0,0.00019275,2]
[386629475,1758443799460,500.0,0.00019275,2]
[386629476,1758443799490,500.0,0.00019275,2]
[386629477,1758443799530,500.0,0.00019275,2]
[386629478,1758443812383,170.53547174,0.00019181,2]
[386629479,1758443822605,300.0,0.00019275,2]
[386629480,1758443851348,1000.0,0.00018319,2]
[386629481,1758443882822,300.0,0.00019275,2]
[386629482,1758443883897,201.95,0.00015984,2]
[386629483,1758443946457,300.0,0.00019275,2]
[386629484,1758443974898,480.0,0.00019275,2]
[386629485,1758444002366,218.0,0.00019275,2]
[386629486,1758444002459,300.0,0.00019275,2]
[386629487,1758444002879,300.0,0.00019275,2]
[386629488,1758444003697,106.54000305,0.00019275,2]
[386629489,1758444003721,193.45999695,0.00019275,2]
[386629490,1758444008147,1200.0,0.00019275,2]
[386629491,1758444020332,394.77539802,0.00019275,2]
[386629492,1758444052999,480.0,0.00019275,2]
[386629493,1758444056649,480.0,0.00019275,2]
[386629494,1758444057888,482.35743363,0.00019275,2]
[386629495,1758444059516,161.177929,0.00018306,2]
[386629496,1758444062033,480.0,0.00019275,2]
[386629497,1758444062686,300.0,0.00019275,2]
[386629498,1758444064104,514.51451244,0.00019275,2]
[386629499,1758444068468,480.0,0.00019275,2]
[386629500,1758444080221,480.0,0.00019275,2]
[386629501,1758444084200,480.0,0.00019275,2]
[386629502,1758444094521,480.0,0.00019275,2]
[386629503,1758444099871,595.33,0.00019275,2]
[386629504,1758444122886,300.0,0.00019275,2]
[386629505,1758444137391,488.94011165,0.00019275,2]
[386629506,1758444141608,480.0,0.00019275,2]
[386629507,1758444141652,480.0,0.00019275,2]
[386629508,1758444146584,480.0,0.00019275,2]
[386629509,1758444147367,170.53547174,0.00019181,2]
[386629510,1758444148422,398.91914657,0.00019275,2]
[386629511,1758444148444,91.10164615,0.00019275,2]
[386629512,1758444158166,472.43981602,0.00019275,2]
[386629513,1758444160768,480.0,0.00019275,2]
[386629514,1758444166756,480.0,0.00019275,2]
[386629515,1758444170852,480.0,0.00019275,2]
[386629516,1758444176117,480.0,0.00019275,2]
[386629517,1758444179513,481.95676386,0.00019275,2]
[386629518,1758444182545,480.0,0.00019275,2]
[386629519,1758444183190,300.0,0.00019275,2]
[386629520,1758444183838,480.0,0.00019275,2]
[386629521,1758444184879,480.0,0.00019275,2]
[386629522,1758444186711,963.49,0.00019275,2]
[386629523,1758444198482,18347.08796332,0.00029196,60]
[386629524,1758444205431,480.0,0.00019275,2]
[386629525,1758444207258,480.0,0.00019275,2]
[386629526,1758444211647,480.0,0.00019275,2]
[386629527,1758444213507,585.29,0.00019275,2]
[386629528,1758444215275,491.87442836,0.00019275,2]
[386629529,1758444229518,864.05,0.00019275,2]
[386629530,1758444235304,480.0,0.00019275,2]
[386629531,1758444238777,469.80734561,0.00019275,2]
[386629532,1758444238800,10.19265439,0.00019275,2]
[386629533,1758444242432,480.0,0.00019275,2]
[386629534,1758444243434,300.0,0.00019275,2]
[386629535,1758444255306,480.0,0.00019275,2]
[386629536,1758444255706,480.0,0.00019275,2]
[386629537,1758444256282,579.88436346,0.00019275,2]
[386629538,1758444257487,484.74263553,0.00019275,2]
[386629539,1758444259850,480.0,0.00019275,2]
[386629540,1758444264831,480.0,0.00019275,2]
[386629541,1758444266439,480.0,0.00019275,2]
[386629542,1758444266817,480.0,0.00019275,2]
[386629543,1758444268276,229.04030158,0.00019275,2]
[386629544,1758444277243,480.0,0.00019275,2]
[386629545,1758444284785,480.0,0.00019275,2]
[386629546,1758444287418,480.0,0.00019275,2]
[386629547,1758444290802,480.0,0.00019275,2]
[386629548,1758444292376,1716.52,0.00019275,2]
[386629549,1758444298621,480.0,0.00019275,2]
[386629550,1758444302460,480.0,0.00019275,2]
[386629551,1758444307325,439.63004504,0.00019275,2]
[386629552,1758444307348,760.36995496,0.00019275,2]
[386629553,1758444311737,480.0,0.00019275,2]
[386629554,1758444315747,480.0,0.00019275,2]
[386629555,1758444316464,480.0,0.00019275,2]
[386629556,1758444316667,480.0,0.00019275,2]
[386629557,1758444320527,241.68324044,0.00019275,2]
[386629558,1758444326182,570.53,0.00019275,2]
[386629559,1758444327837,480.0,0.00019275,2]
[386629560,1758444334895,480.0,0.00019275,2]
[386629561,1758444336669,480.0,0.00019275,2]
[386629562,1758444339148,480.0,0.00019275,2]
[386629563,1758444340883,486.05159941,0.00019275,2]
[386629564,1758444342057,480.0,0.00019275,2]
[386629565,1758444351916,349.38240688,0.00019275,2]
[386629566,1758444353719,480.0,0.00019275,2]
[386629567,1758444357225,480.0,0.00019275,2]
[386629568,1758444359732,495.33335367,0.00019275,2]
[386629569,1758444362555,300.0,0.00019275,2]
[386629570,1758444362948,480.0,0.00019275,2]
[386629571,1758444363780,480.0,0.00019275,2]
[386629572,1758444374182,480.0,0.00019275,2]
[386629573,1758444376174,76.65944464,0.00019275,2]
[386629574,1758444376196,403.34055536,0.00019275,2]
[386629575,1758444377987,480.0,0.00019275,2]
[386629576,1758444381308,480.0,0.00019275,2]
[386629577,1758444381974,480.0,0.00019275,2]
[386629578,1758444386802,484.81048437,0.00019275,2]
[386629579,1758444387296,1645.0,0.00019275,2]
[386629580,1758444388498,1000.0,0.00019275,2]
[386629581,1758444389926,1000.0,0.00019275,2]
[386629582,1758444390961,1000.0,0.00019275,2]
[386629583,1758444392188,1000.0,0.00019275,2]
[386629584,1758444393355,1000.0,0.00019275,2]
[386629585,1758444394655,1000.0,0.00019275,2]
[386629586,1758444395738,26.85896027,0.00019275,2]
[386629587,1758444395761,453.14103973,0.00019275,2]
[386629588,1758444395788,1000.0,0.00019275,2]
[386629589,1758444396915,155.48437031,0.00019275,2]
[386629590,1758444398932,480.0,0.00019275,2]
[386629591,1758444400472,-160.0,0.00019276,2]
[386629592,1758444410398,-468.67188597,0.00019275,2]
[386629593,1758444418818,-480.0,0.00019275,2]
[386629594,1758444418860,-923.34,0.00019275,2]
[386629595,1758444418897,-453.60001914,0.00019275,2]
[386629596,1758444419878,-3663.28071981,0.00019276,2]
[386629597,1758444430466,-690.08,0.00019275,2]
[386629598,1758444430496,-300.0,0.00019275,2]
[386629599,1758444430525,-496.18824967,0.00019275,2]
[386629600,1758444430554,-480.0,0.00019275,2]
[386629601,1758444430582,-480.0,0.00019275,2]
[386629602,1758444430612,-480.0,0.00019275,2]
[386629603,1758444430642,-480.0,0.00019275,2]
[386629604,1758444432127,487.12475197,0.00019275,2]
[386629605,1758444432806,480.0,0.00019275,2]
[386629606,1758444436285,480.0,0.00019275,2]
[386629607,1758444436854,480.0,0.00019275,2]
[386629608,1758444444778,560.9,0.00019275,2]
[386629609,1758444448205,480.0,0.00019275,2]
[386629610,1758444452568,219.44874869,0.00019275,2]
[386629611,1758444452592,317.56167589,0.00019275,2]
[386629612,1758444456386,480.0,0.00019275,2]
[386629613,1758444461290,828.05,0.00019275,2]
[386629614,1758444465505,480.0,0.00019275,2]
[386629615,1758444466399,480.0,0.00019275,2]
[386629617,1758444467125,480.0,0.00019275,2]
[386629628,1758444468491,480.0,0.00019275,2]
[386629629,1758444470063,480.0,0.00019275,2]
[386629631,1758444471025,480.0,0.00019275,2]